[Event "*** Titled Tuesday Blitz"]
[Site "Chess.com"]
[Date "2020.11.10"]
[Round "4"]
[White "MarceloPlaya"]
[Black "catzapto"]
[Result "0-1"]
[WhiteElo "2284"]
[BlackElo "2140"]
[TimeControl "180+1"]
[EndTime "10:42:39 PST"]
[Termination "catzapto won on time"]

1. e4 {[%clk 0:02:44.4]} 1... c5 {[%clk 0:02:59.6]} 2. Nf3 {[%clk 0:02:43.4]}
2... e6 {[%clk 0:03:00.1]} 3. d4 {[%clk 0:02:42.8]} 3... cxd4 {[%clk 0:03:01]}
4. Nxd4 {[%clk 0:02:42.5]} 4... Nf6 {[%clk 0:03:01.6]} 5. Nc3 {[%clk 0:02:42.6]}
5... Bb4 {[%clk 0:03:02.3]} 6. Bd3 {[%clk 0:02:41]} 6... Nc6 {[%clk 0:03:01.5]}
7. Nb3 {[%clk 0:02:39.9]} 7... d5 {[%clk 0:03:00.2]} 8. exd5 {[%clk 0:02:38.5]}
8... Nxd5 {[%clk 0:03:00.5]} 9. Bd2 {[%clk 0:02:37.5]} 9... Nxc3 {[%clk
0:03:01.1]} 10. bxc3 {[%clk 0:02:37]} 10... Be7 {[%clk 0:03:01.6]} 11. O-O
{[%clk 0:02:35.9]} 11... O-O {[%clk 0:03:01.8]} 12. Rb1 {[%clk 0:02:23.9]} 12...
Ne5 {[%clk 0:03:00.2]} 13. Be4 {[%clk 0:02:20.9]} 13... f5 {[%clk 0:02:58.6]}
14. Bf3 {[%clk 0:02:16.5]} 14... Nxf3+ {[%clk 0:02:58.5]} 15. Qxf3 {[%clk
0:02:16]} 15... a5 {[%clk 0:02:46.5]} 16. Rfd1 {[%clk 0:02:11.1]} 16... Qc7
{[%clk 0:02:43.8]} 17. Nd4 {[%clk 0:02:04.3]} 17... e5 {[%clk 0:02:40.5]} 18.
Nb5 {[%clk 0:02:00.3]} 18... Qb8 {[%clk 0:02:40.8]} 19. Qd5+ {[%clk 0:01:49.6]}
19... Kh8 {[%clk 0:02:36.5]} 20. c4 {[%clk 0:01:49.2]} 20... Ra6 {[%clk
0:02:24]} 21. Bc3 {[%clk 0:01:43]} 21... Bf6 {[%clk 0:02:01.1]} 22. c5 {[%clk
0:01:30.3]} 22... Be6 {[%clk 0:01:57.2]} 23. Qd2 {[%clk 0:01:28.1]} 23... Rc6
{[%clk 0:01:44.2]} 24. Bxa5 {[%clk 0:01:22.4]} 24... Rxc5 {[%clk 0:01:41.5]} 25.
Bb6 {[%clk 0:01:04.1]} 25... Rc6 {[%clk 0:01:36.1]} 26. Nc7 {[%clk 0:00:55.5]}
26... Rxc7 {[%clk 0:01:34]} 27. Bxc7 {[%clk 0:00:53.6]} 27... Qxc7 {[%clk
0:01:34.9]} 28. Qd6 {[%clk 0:00:51.4]} 28... Rc8 {[%clk 0:01:25.5]} 29. Qxc7
{[%clk 0:00:48.2]} 29... Rxc7 {[%clk 0:01:25.5]} 30. Rd6 {[%clk 0:00:41.3]}
30... Bxa2 {[%clk 0:01:21.8]} 31. Ra1 {[%clk 0:00:40.8]} 31... Rxc2 {[%clk
0:01:20.5]} 32. Rb6 {[%clk 0:00:33.3]} 32... e4 {[%clk 0:01:13.5]} 33. Rd1
{[%clk 0:00:32.1]} 33... h6 {[%clk 0:01:00.9]} 34. Rxb7 {[%clk 0:00:30.4]} 34...
Bc4 {[%clk 0:00:52.6]} 35. g3 {[%clk 0:00:29.4]} 35... Bd3 {[%clk 0:00:50.3]}
36. Rd7 {[%clk 0:00:25.8]} 36... Kh7 {[%clk 0:00:47.7]} 37. h4 {[%clk
0:00:25.1]} 37... h5 {[%clk 0:00:47.5]} 38. Re1 {[%clk 0:00:20.4]} 38... Kg6
{[%clk 0:00:44.7]} 39. Rd5 {[%clk 0:00:19.3]} 39... Rb2 {[%clk 0:00:41.4]} 40.
Rc1 {[%clk 0:00:18.3]} 40... Rb1 {[%clk 0:00:41.5]} 41. Rxb1 {[%clk 0:00:17.9]}
41... Bxb1 {[%clk 0:00:42.4]} 42. Kg2 {[%clk 0:00:16.7]} 42... Bd3 {[%clk
0:00:41.8]} 43. f3 {[%clk 0:00:15]} 43... Kf7 {[%clk 0:00:41.3]} 44. Kf2 {[%clk
0:00:13.3]} 44... Ke6 {[%clk 0:00:41.3]} 45. fxe4 {[%clk 0:00:07.4]} 45... fxe4
{[%clk 0:00:38.9]} 46. Ra5 {[%clk 0:00:06]} 46... Bd4+ {[%clk 0:00:38.6]} 47.
Kg2 {[%clk 0:00:05.6]} 47... e3 {[%clk 0:00:37.3]} 48. Kf3 {[%clk 0:00:05.4]}
48... e2 {[%clk 0:00:36.6]} 49. Ra8 {[%clk 0:00:03.2]} 49... Kd5 {[%clk
0:00:28.3]} 0-1

[Event "*** Titled Tuesday Blitz"]
[Site "Chess.com"]
[Date "2020.11.10"]
[Round "4"]
[White "blitzking1729"]
[Black "VitaliyBernadskiy"]
[Result "0-1"]
[WhiteElo "2532"]
[BlackElo "2741"]
[TimeControl "180+1"]
[EndTime "10:42:41 PST"]
[Termination "VitaliyBernadskiy won by checkmate"]

1. d4 {[%clk 0:03:00.9]} 1... g6 {[%clk 0:02:58.7]} 2. g3 {[%clk 0:02:58.5]}
2... Bg7 {[%clk 0:02:58.3]} 3. Bg2 {[%clk 0:02:58]} 3... c5 {[%clk 0:02:57.3]}
4. Nf3 {[%clk 0:02:55.6]} 4... cxd4 {[%clk 0:02:55]} 5. Nxd4 {[%clk 0:02:55]}
5... Nc6 {[%clk 0:02:54.1]} 6. Nb3 {[%clk 0:02:51]} 6... d6 {[%clk 0:02:51.2]}
7. O-O {[%clk 0:02:49.5]} 7... h5 {[%clk 0:02:43.5]} 8. h4 {[%clk 0:02:48.3]}
8... Nh6 {[%clk 0:02:35.6]} 9. c4 {[%clk 0:02:43.7]} 9... Be6 {[%clk 0:02:35]}
10. Qd3 {[%clk 0:02:39.5]} 10... Ne5 {[%clk 0:02:28.1]} 11. Qd1 {[%clk
0:02:33.7]} 11... Bxc4 {[%clk 0:02:25.2]} 12. Bxb7 {[%clk 0:02:31.3]} 12... Rb8
{[%clk 0:02:20.1]} 13. Bg2 {[%clk 0:02:29.9]} 13... O-O {[%clk 0:02:18.2]} 14.
Nc3 {[%clk 0:02:27.8]} 14... Nf5 {[%clk 0:02:10.8]} 15. Bf4 {[%clk 0:02:26.1]}
15... Qb6 {[%clk 0:02:01.8]} 16. Nd5 {[%clk 0:02:14.5]} 16... Bxd5 {[%clk
0:01:50.5]} 17. Qxd5 {[%clk 0:02:13]} 17... Ng4 {[%clk 0:01:44.9]} 18. e4 {[%clk
0:02:07.6]} 18... e5 {[%clk 0:01:39.4]} 19. exf5 {[%clk 0:01:44.1]} 19... exf4
{[%clk 0:01:38.5]} 20. fxg6 {[%clk 0:01:42.9]} 20... fxg3 {[%clk 0:01:37.6]} 21.
Qxh5 {[%clk 0:01:41.9]} 21... gxf2+ {[%clk 0:01:31.4]} 22. Kh1 {[%clk 0:01:40]}
22... Nh6 {[%clk 0:01:30.6]} 23. Rad1 {[%clk 0:01:21.3]} 23... Qe3 {[%clk
0:01:14]} 24. Qf3 {[%clk 0:00:59.2]} 24... Qe7 {[%clk 0:01:02.3]} 25. Qxf2
{[%clk 0:00:43.2]} 25... fxg6 {[%clk 0:00:58.9]} 26. Qg3 {[%clk 0:00:41.7]}
26... Nf5 {[%clk 0:00:55.3]} 27. Qxg6 {[%clk 0:00:37.3]} 27... Qxh4+ {[%clk
0:00:48.8]} 28. Kg1 {[%clk 0:00:34.8]} 28... Rf6 {[%clk 0:00:48.2]} 29. Qxf5
{[%clk 0:00:22.8]} 29... Rxf5 {[%clk 0:00:47.9]} 30. Rxf5 {[%clk 0:00:23.7]}
30... Qg4 {[%clk 0:00:46.8]} 31. Rdf1 {[%clk 0:00:21.6]} 31... a5 {[%clk
0:00:38.7]} 32. R1f4 {[%clk 0:00:17.2]} 32... Qg3 {[%clk 0:00:33.7]} 33. Rf3
{[%clk 0:00:16.3]} 33... Qg6 {[%clk 0:00:33.1]} 34. R5f4 {[%clk 0:00:11.3]}
34... Be5 {[%clk 0:00:28.9]} 35. Rh4 {[%clk 0:00:06.8]} 35... Qb1+ {[%clk
0:00:25.4]} 36. Rf1 {[%clk 0:00:04.9]} 36... Qg6 {[%clk 0:00:23.5]} 37. Rf3
{[%clk 0:00:04]} 37... Rf8 {[%clk 0:00:19.8]} 38. Rxf8+ {[%clk 0:00:03.6]} 38...
Kxf8 {[%clk 0:00:20.7]} 39. Re4 {[%clk 0:00:03.9]} 39... a4 {[%clk 0:00:19.5]}
40. Rxa4 {[%clk 0:00:03]} 40... Qb1+ {[%clk 0:00:19.5]} 41. Bf1 {[%clk 0:00:03]}
41... Qxb2 {[%clk 0:00:19.8]} 42. Re4 {[%clk 0:00:02.1]} 42... Qh2# {[%clk
0:00:19]} 0-1

[Event "*** Titled Tuesday Blitz"]
[Site "Chess.com"]
[Date "2020.11.10"]
[Round "4"]
[White "lelya96"]
[Black "Mikasinski"]
[Result "0-1"]
[WhiteElo "2216"]
[BlackElo "2495"]
[TimeControl "180+1"]
[EndTime "10:42:42 PST"]
[Termination "Mikasinski won by resignation"]

1. e4 {[%clk 0:03:00.9]} 1... c5 {[%clk 0:02:59.2]} 2. Nf3 {[%clk 0:03:00]} 2...
d6 {[%clk 0:02:59.5]} 3. d4 {[%clk 0:02:59.7]} 3... cxd4 {[%clk 0:03:00.2]} 4.
Nxd4 {[%clk 0:03:00.2]} 4... Nf6 {[%clk 0:03:00.8]} 5. Nc3 {[%clk 0:02:59.3]}
5... g6 {[%clk 0:03:01.4]} 6. Be3 {[%clk 0:02:56.6]} 6... Bg7 {[%clk 0:03:01.8]}
7. f3 {[%clk 0:02:56.7]} 7... O-O {[%clk 0:03:02.3]} 8. Bc4 {[%clk 0:02:56.4]}
8... Nc6 {[%clk 0:03:02.9]} 9. Qd2 {[%clk 0:02:56]} 9... Bd7 {[%clk 0:03:03.5]}
10. O-O-O {[%clk 0:02:55.1]} 10... Rc8 {[%clk 0:03:04.2]} 11. Bb3 {[%clk
0:02:55.3]} 11... Ne5 {[%clk 0:03:04.7]} 12. h4 {[%clk 0:02:52.2]} 12... h5
{[%clk 0:03:04.2]} 13. Bg5 {[%clk 0:02:48.6]} 13... Rc5 {[%clk 0:03:03.8]} 14.
Kb1 {[%clk 0:02:46.5]} 14... b5 {[%clk 0:02:51.6]} 15. Rhe1 {[%clk 0:02:08.1]}
15... Re8 {[%clk 0:02:33.9]} 16. f4 {[%clk 0:02:06.8]} 16... Nc4 {[%clk
0:02:23.5]} 17. Bxc4 {[%clk 0:02:05.8]} 17... Rxc4 {[%clk 0:02:24]} 18. e5
{[%clk 0:02:03]} 18... Nh7 {[%clk 0:02:02.7]} 19. Nb3 {[%clk 0:01:24.1]} 19...
Nxg5 {[%clk 0:02:01.8]} 20. hxg5 {[%clk 0:01:23.6]} 20... Bg4 {[%clk 0:02:01.1]}
21. Rc1 {[%clk 0:01:20.2]} 21... dxe5 {[%clk 0:01:56.6]} 22. fxe5 {[%clk
0:01:03.9]} 22... Qxd2 {[%clk 0:01:54.1]} 23. Nxd2 {[%clk 0:01:03.7]} 23... Rc5
{[%clk 0:01:53]} 24. Nb3 {[%clk 0:00:44.9]} 24... Rxe5 {[%clk 0:01:52]} 25. Rxe5
{[%clk 0:00:43.8]} 25... Bxe5 {[%clk 0:01:50.8]} 26. Nxb5 {[%clk 0:00:43.1]}
26... a6 {[%clk 0:01:42.4]} 27. N5d4 {[%clk 0:00:29]} 27... Bf4 {[%clk
0:01:39.5]} 28. Re1 {[%clk 0:00:28.9]} 28... Bxg5 {[%clk 0:01:38.1]} 29. Nc5
{[%clk 0:00:28.1]} 29... Bf6 {[%clk 0:01:33.6]} 30. Ndb3 {[%clk 0:00:24.4]}
30... Rc8 {[%clk 0:01:13]} 31. Nxa6 {[%clk 0:00:22.9]} 31... Bf5 {[%clk
0:01:11.5]} 32. Nac5 {[%clk 0:00:22.8]} 32... h4 {[%clk 0:01:00.5]} 33. a4
{[%clk 0:00:22.4]} 33... g5 {[%clk 0:00:57.3]} 34. a5 {[%clk 0:00:22.2]} 34...
g4 {[%clk 0:00:54]} 35. Rf1 {[%clk 0:00:18.6]} 35... e6 {[%clk 0:00:51.1]} 36.
Nd3 {[%clk 0:00:17]} 36... Bd8 {[%clk 0:00:42.4]} 37. a6 {[%clk 0:00:16.8]}
37... Ra8 {[%clk 0:00:41.6]} 38. Nbc5 {[%clk 0:00:16.6]} 38... Bb6 {[%clk
0:00:34.6]} 39. b4 {[%clk 0:00:15.8]} 39... Bxd3 {[%clk 0:00:28.5]} 40. Nxd3
{[%clk 0:00:14.1]} 40... Rxa6 {[%clk 0:00:28.3]} 41. Rf4 {[%clk 0:00:14.7]}
41... f5 {[%clk 0:00:24.6]} 42. c4 {[%clk 0:00:14.6]} 42... Be3 {[%clk
0:00:23.4]} 43. Rf1 {[%clk 0:00:14.1]} 43... Bd4 {[%clk 0:00:22.2]} 44. Kc2
{[%clk 0:00:13.6]} 44... Ra2+ {[%clk 0:00:21]} 45. Kb3 {[%clk 0:00:13.4]} 45...
Rxg2 {[%clk 0:00:21.2]} 46. Nf4 {[%clk 0:00:13.1]} 46... Rg3+ {[%clk 0:00:21.7]}
47. Ka4 {[%clk 0:00:13.4]} 47... Rf3 {[%clk 0:00:20.1]} 48. Rxf3 {[%clk
0:00:10.4]} 48... gxf3 {[%clk 0:00:20.5]} 49. Nxe6 {[%clk 0:00:07.9]} 49... f2
{[%clk 0:00:19.9]} 50. Nxd4 {[%clk 0:00:08.8]} 50... f1=Q {[%clk 0:00:20.2]} 51.
b5 {[%clk 0:00:08.6]} 51... Qa1+ {[%clk 0:00:20.4]} 52. Kb4 {[%clk 0:00:08.7]}
52... Qxd4 {[%clk 0:00:21.2]} 0-1

[Event "*** Titled Tuesday Blitz"]
[Site "Chess.com"]
[Date "2020.11.10"]
[Round "4"]
[White "saraswathii"]
[Black "IwkooO"]
[Result "0-1"]
[WhiteElo "2358"]
[BlackElo "2616"]
[TimeControl "180+1"]
[EndTime "10:42:43 PST"]
[Termination "IwkooO won by resignation"]

1. e4 {[%clk 0:03:00.9]} 1... c5 {[%clk 0:03:00]} 2. d3 {[%clk 0:02:59.5]} 2...
d5 {[%clk 0:02:59]} 3. Nd2 {[%clk 0:02:52.9]} 3... Nc6 {[%clk 0:02:57.1]} 4.
Ngf3 {[%clk 0:02:36.1]} 4... g6 {[%clk 0:02:44.7]} 5. g3 {[%clk 0:02:29.6]} 5...
Bg7 {[%clk 0:02:44.7]} 6. Bg2 {[%clk 0:02:27.6]} 6... e6 {[%clk 0:02:45.2]} 7.
O-O {[%clk 0:02:25.7]} 7... Nge7 {[%clk 0:02:45.7]} 8. c3 {[%clk 0:02:19.6]}
8... O-O {[%clk 0:02:45.7]} 9. Qe2 {[%clk 0:02:10.9]} 9... b6 {[%clk 0:02:45.4]}
10. e5 {[%clk 0:02:09.2]} 10... Ba6 {[%clk 0:02:42.7]} 11. Re1 {[%clk
0:02:07.2]} 11... b5 {[%clk 0:02:29.7]} 12. a3 {[%clk 0:02:01.4]} 12... Qb6
{[%clk 0:02:26.9]} 13. Nf1 {[%clk 0:01:57.2]} 13... b4 {[%clk 0:02:25.4]} 14.
axb4 {[%clk 0:01:52.7]} 14... cxb4 {[%clk 0:02:23.8]} 15. Bf4 {[%clk 0:01:44.1]}
15... Rfc8 {[%clk 0:02:21.6]} 16. h4 {[%clk 0:01:38.8]} 16... Nb8 {[%clk
0:02:11.1]} 17. Qd2 {[%clk 0:01:36.8]} 17... Nd7 {[%clk 0:02:09.4]} 18. Ne3
{[%clk 0:01:30.2]} 18... Nc5 {[%clk 0:02:08.2]} 19. cxb4 {[%clk 0:01:20.8]}
19... Nb3 {[%clk 0:01:46.1]} 20. Rxa6 {[%clk 0:01:05.7]} 20... Qxa6 {[%clk
0:01:47]} 21. Qe2 {[%clk 0:00:55.8]} 21... Nc6 {[%clk 0:01:45.9]} 22. h5 {[%clk
0:00:50.4]} 22... Nxb4 {[%clk 0:01:43.1]} 23. Rd1 {[%clk 0:00:46.5]} 23... Nc6
{[%clk 0:01:33.2]} 24. Ng4 {[%clk 0:00:33.1]} 24... Ncd4 {[%clk 0:01:30.7]} 25.
Nxd4 {[%clk 0:00:17.7]} 25... Nxd4 {[%clk 0:01:31.6]} 26. Qe3 {[%clk 0:00:17.5]}
26... Nf5 {[%clk 0:01:31.5]} 27. Qe2 {[%clk 0:00:13.6]} 27... Rab8 {[%clk
0:01:27.3]} 28. hxg6 {[%clk 0:00:07.7]} 28... hxg6 {[%clk 0:01:26.5]} 29. Nf6+
{[%clk 0:00:05.7]} 29... Kf8 {[%clk 0:01:24.3]} 30. Nd7+ {[%clk 0:00:03.7]}
30... Ke8 {[%clk 0:01:22.6]} 31. Nxb8 {[%clk 0:00:04.6]} 31... Rxb8 {[%clk
0:01:23.5]} 32. Qd2 {[%clk 0:00:04.6]} 32... Qb6 {[%clk 0:01:18.7]} 33. d4
{[%clk 0:00:04.7]} 33... Qxb2 {[%clk 0:01:13.5]} 34. Qa5 {[%clk 0:00:05]} 34...
Qb6 {[%clk 0:01:10.6]} 35. Qa4+ {[%clk 0:00:04.6]} 35... Kf8 {[%clk 0:01:10.5]}
36. Bf1 {[%clk 0:00:04.3]} 36... Kg8 {[%clk 0:01:07.4]} 37. Be3 {[%clk
0:00:02.5]} 37... Nxe3 {[%clk 0:01:06.6]} 38. fxe3 {[%clk 0:00:03.4]} 38... Bh6
{[%clk 0:01:07.1]} 39. Kf2 {[%clk 0:00:02.2]} 39... Qb3 {[%clk 0:01:01.3]} 40.
Qxb3 {[%clk 0:00:01.4]} 40... Rxb3 {[%clk 0:01:02.2]} 41. Bd3 {[%clk 0:00:01.6]}
41... a5 {[%clk 0:00:43.9]} 42. Kf3 {[%clk 0:00:02]} 42... a4 {[%clk 0:00:43.7]}
43. e4 {[%clk 0:00:01.2]} 43... dxe4+ {[%clk 0:00:41.6]} 44. Kxe4 {[%clk
0:00:02.1]} 44... a3 {[%clk 0:00:42.1]} 45. d5 {[%clk 0:00:02.3]} 45... Rb4+
{[%clk 0:00:39.3]} 46. Kf3 {[%clk 0:00:02.6]} 46... exd5 {[%clk 0:00:39.7]} 47.
Bb1 {[%clk 0:00:02]} 47... Rb3+ {[%clk 0:00:34.9]} 48. Bd3 {[%clk 0:00:01.9]}
48... a2 {[%clk 0:00:33.3]} 49. Ke2 {[%clk 0:00:02.8]} 49... Bg7 {[%clk
0:00:33.5]} 50. Ra1 {[%clk 0:00:03.3]} 50... Rb2+ {[%clk 0:00:32.7]} 51. Ke3
{[%clk 0:00:03.9]} 51... Bxe5 {[%clk 0:00:33.1]} 52. Be2 {[%clk 0:00:03.4]}
52... Rxe2+ {[%clk 0:00:32.6]} 0-1

[Event "*** Titled Tuesday Blitz"]
[Site "Chess.com"]
[Date "2020.11.10"]
[Round "4"]
[White "Fy_Rakotomaharo"]
[Black "djano"]
[Result "0-1"]
[WhiteElo "2637"]
[BlackElo "2481"]
[TimeControl "180+1"]
[EndTime "10:42:44 PST"]
[Termination "djano won by resignation"]

1. g3 {[%clk 0:03:00.9]} 1... g6 {[%clk 0:02:58.2]} 2. Bg2 {[%clk 0:02:59.5]}
2... Bg7 {[%clk 0:02:58.7]} 3. d3 {[%clk 0:03:00]} 3... Nf6 {[%clk 0:02:58.7]}
4. f4 {[%clk 0:02:59.8]} 4... O-O {[%clk 0:02:57.9]} 5. Nf3 {[%clk 0:02:59.9]}
5... d6 {[%clk 0:02:56.8]} 6. O-O {[%clk 0:03:00.1]} 6... c5 {[%clk 0:02:56.1]}
7. e4 {[%clk 0:03:00]} 7... Nc6 {[%clk 0:02:56.5]} 8. c3 {[%clk 0:02:55.3]} 8...
Rb8 {[%clk 0:02:56.1]} 9. a4 {[%clk 0:02:44.8]} 9... a6 {[%clk 0:02:48.3]} 10.
Qe2 {[%clk 0:02:20.5]} 10... b5 {[%clk 0:02:46.9]} 11. axb5 {[%clk 0:02:21.2]}
11... axb5 {[%clk 0:02:47.8]} 12. h3 {[%clk 0:02:04.7]} 12... b4 {[%clk
0:02:47.7]} 13. g4 {[%clk 0:01:57.9]} 13... bxc3 {[%clk 0:02:47.6]} 14. bxc3
{[%clk 0:01:57.5]} 14... Nd7 {[%clk 0:02:46.8]} 15. Be3 {[%clk 0:01:43.9]} 15...
Qb6 {[%clk 0:02:33]} 16. Rc1 {[%clk 0:01:39.8]} 16... e6 {[%clk 0:02:24.7]} 17.
Nbd2 {[%clk 0:01:39.2]} 17... d5 {[%clk 0:02:19.4]} 18. e5 {[%clk 0:01:33.2]}
18... d4 {[%clk 0:02:15.4]} 19. Nc4 {[%clk 0:01:29.6]} 19... Qd8 {[%clk
0:02:07.7]} 20. cxd4 {[%clk 0:01:20.1]} 20... cxd4 {[%clk 0:02:07.2]} 21. Nxd4
{[%clk 0:01:19.8]} 21... Nxd4 {[%clk 0:02:05.1]} 22. Bxd4 {[%clk 0:01:20.7]}
22... Bb7 {[%clk 0:02:04.6]} 23. Bxb7 {[%clk 0:01:12.6]} 23... Rxb7 {[%clk
0:02:05.5]} 24. Qe4 {[%clk 0:01:13.1]} 24... Qb8 {[%clk 0:01:58.5]} 25. Na5
{[%clk 0:01:10.4]} 25... Rb5 {[%clk 0:01:50.1]} 26. Nc6 {[%clk 0:01:10.6]} 26...
Qe8 {[%clk 0:01:41.4]} 27. Ra7 {[%clk 0:01:00.3]} 27... f5 {[%clk 0:01:15.8]}
28. exf6 {[%clk 0:00:59.2]} 28... Bxf6 {[%clk 0:01:14.3]} 29. Re1 {[%clk
0:00:47.6]} 29... e5 {[%clk 0:01:10.4]} 30. fxe5 {[%clk 0:00:34.7]} 30... Bh4
{[%clk 0:01:09.4]} 31. e6 {[%clk 0:00:18.3]} 31... Nf6 {[%clk 0:01:02.8]} 32.
Bxf6 {[%clk 0:00:17.5]} 32... Rxf6 {[%clk 0:01:01.3]} 33. Rf1 {[%clk 0:00:14.8]}
33... Rxe6 {[%clk 0:00:57.6]} 34. Qc4 {[%clk 0:00:09.3]} 34... Qxc6 {[%clk
0:00:57.5]} 35. Ra8+ {[%clk 0:00:08.4]} 35... Kg7 {[%clk 0:00:51.5]} 36. Ra7+
{[%clk 0:00:08.3]} 36... Kg8 {[%clk 0:00:28.6]} 37. Ra8+ {[%clk 0:00:08.3]}
37... Qxa8 {[%clk 0:00:17.4]} 38. Qxe6+ {[%clk 0:00:08.4]} 38... Kh8 {[%clk
0:00:17.9]} 39. Qd6 {[%clk 0:00:09.3]} 39... Qa7+ {[%clk 0:00:17]} 40. Kh1
{[%clk 0:00:09.3]} 40... Qa8+ {[%clk 0:00:15.2]} 41. Kg1 {[%clk 0:00:09.3]}
41... Qa7+ {[%clk 0:00:14]} 42. Kh1 {[%clk 0:00:05.7]} 42... Be7 {[%clk
0:00:14.6]} 43. Qe6 {[%clk 0:00:03.4]} 43... Qb7+ {[%clk 0:00:14.3]} 44. Kg1
{[%clk 0:00:03.5]} 44... Qb6+ {[%clk 0:00:14.7]} 45. Kh1 {[%clk 0:00:03.8]}
45... Qxe6 {[%clk 0:00:13.6]} 0-1

[Event "*** Titled Tuesday Blitz"]
[Site "Chess.com"]
[Date "2020.11.10"]
[Round "4"]
[White "Ermito2020"]
[Black "eightbyeightchess"]
[Result "1-0"]
[WhiteElo "2594"]
[BlackElo "2408"]
[TimeControl "180+1"]
[EndTime "10:42:44 PST"]
[Termination "Ermito2020 won by resignation"]

1. e4 {[%clk 0:03:00.9]} 1... d5 {[%clk 0:02:55.8]} 2. exd5 {[%clk 0:03:00]}
2... Nf6 {[%clk 0:02:55.6]} 3. Nf3 {[%clk 0:02:58.8]} 3... Bg4 {[%clk
0:02:55.8]} 4. h3 {[%clk 0:02:55.3]} 4... Bh5 {[%clk 0:02:54.8]} 5. d4 {[%clk
0:02:40.8]} 5... Qxd5 {[%clk 0:02:50.8]} 6. Be2 {[%clk 0:02:35.7]} 6... Nc6
{[%clk 0:02:42.2]} 7. c4 {[%clk 0:02:35.5]} 7... Qf5 {[%clk 0:02:16.1]} 8. O-O
{[%clk 0:02:10.3]} 8... O-O-O {[%clk 0:02:15.1]} 9. d5 {[%clk 0:02:02.7]} 9...
Bxf3 {[%clk 0:01:44]} 10. Bxf3 {[%clk 0:02:03.6]} 10... e6 {[%clk 0:01:40.7]}
11. Nc3 {[%clk 0:01:59.8]} 11... Bc5 {[%clk 0:01:19.9]} 12. Be3 {[%clk
0:01:52.2]} 12... Bxe3 {[%clk 0:01:03.7]} 13. fxe3 {[%clk 0:01:53.1]} 13... Qg5
{[%clk 0:01:00.4]} 14. Qe2 {[%clk 0:01:28.4]} 14... exd5 {[%clk 0:00:58.1]} 15.
cxd5 {[%clk 0:01:28.2]} 15... Ne5 {[%clk 0:00:49.5]} 16. Rac1 {[%clk 0:01:28.7]}
16... Rhe8 {[%clk 0:00:36.3]} 17. Nb5 {[%clk 0:01:26.5]} 17... Nxf3+ {[%clk
0:00:36.6]} 18. Qxf3 {[%clk 0:01:26.1]} 18... Rxe3 {[%clk 0:00:32.1]} 19. Qf2
{[%clk 0:00:53.9]} 19... Nxd5 {[%clk 0:00:17.1]} 20. Nxa7+ {[%clk 0:00:53.5]}
20... Kb8 {[%clk 0:00:17.2]} 21. Nb5 {[%clk 0:00:54.4]} 21... f6 {[%clk
0:00:09.5]} 22. Rfd1 {[%clk 0:00:52.9]} 22... Qe5 {[%clk 0:00:08.4]} 23. Rxc7
{[%clk 0:00:42.7]} 23... Re8 {[%clk 0:00:03.5]} 24. Rxg7 {[%clk 0:00:31.8]}
24... Re1+ {[%clk 0:00:03]} 25. Rxe1 {[%clk 0:00:31.8]} 25... Qxe1+ {[%clk
0:00:03.9]} 26. Qxe1 {[%clk 0:00:32.1]} 26... Rxe1+ {[%clk 0:00:04.8]} 27. Kh2
{[%clk 0:00:32]} 27... Re2 {[%clk 0:00:05]} 28. b3 {[%clk 0:00:30.6]} 28... Rxa2
{[%clk 0:00:05.1]} 29. Nd6 {[%clk 0:00:31.1]} 29... Ne3 {[%clk 0:00:04.4]} 30.
Rxb7+ {[%clk 0:00:30]} 30... Ka8 {[%clk 0:00:04.9]} 31. Rg7 {[%clk 0:00:30.7]}
31... Rb2 {[%clk 0:00:05.1]} 32. Nc4 {[%clk 0:00:29.5]} 32... Rxb3 {[%clk
0:00:05.5]} 33. Nxe3 {[%clk 0:00:28.1]} 33... Rxe3 {[%clk 0:00:06.4]} 34. Rxh7
{[%clk 0:00:28.6]} 34... Kb8 {[%clk 0:00:07]} 35. Rf7 {[%clk 0:00:28.5]} 35...
Re6 {[%clk 0:00:06]} 36. Kg3 {[%clk 0:00:27]} 36... Kc8 {[%clk 0:00:06.7]} 37.
Kf4 {[%clk 0:00:27.1]} 37... Kd8 {[%clk 0:00:07.3]} 38. Kf5 {[%clk 0:00:24.3]}
38... Re2 {[%clk 0:00:07.5]} 39. g4 {[%clk 0:00:23.5]} 39... Ke8 {[%clk
0:00:06.7]} 40. Rxf6 {[%clk 0:00:23.5]} 40... Ke7 {[%clk 0:00:07]} 41. Rh6
{[%clk 0:00:22.8]} 41... Kf7 {[%clk 0:00:06.8]} 42. h4 {[%clk 0:00:20.1]} 42...
Kg7 {[%clk 0:00:07.2]} 43. Rg6+ {[%clk 0:00:19.8]} 43... Kh7 {[%clk 0:00:07.7]}
44. h5 {[%clk 0:00:20.6]} 44... Rf2+ {[%clk 0:00:07.5]} 45. Kg5 {[%clk
0:00:20.7]} 45... Ra2 {[%clk 0:00:08.4]} 46. Rf6 {[%clk 0:00:20.5]} 46... Ra5+
{[%clk 0:00:08.5]} 47. Rf5 {[%clk 0:00:20.7]} 47... Ra7 {[%clk 0:00:09.4]} 48.
Kh4 {[%clk 0:00:20.7]} 48... Kh6 {[%clk 0:00:10.1]} 49. Rf6+ {[%clk 0:00:20.6]}
49... Kh7 {[%clk 0:00:10]} 50. Rg6 {[%clk 0:00:20.5]} 50... Ra4 {[%clk
0:00:10.3]} 51. Rc6 {[%clk 0:00:19.9]} 51... Ra7 {[%clk 0:00:10.9]} 52. Rc5
{[%clk 0:00:20.1]} 52... Rb7 {[%clk 0:00:11.1]} 53. Kg5 {[%clk 0:00:19.9]} 53...
Rd7 {[%clk 0:00:11]} 54. Re5 {[%clk 0:00:19]} 54... Rf7 {[%clk 0:00:11.2]} 55.
h6 {[%clk 0:00:19]} 55... Ra7 {[%clk 0:00:11.7]} 56. Kh5 {[%clk 0:00:19.1]}
56... Ra5 {[%clk 0:00:07.8]} 57. Rxa5 {[%clk 0:00:18.4]} 1-0